Workbook

Sheet Frequentie
A1: Oefeningen frequentie 2 HV | M1: 1,2 of 3 | N1: 0 | O1: =SIN(RADIANS(N1/100*$V$3*360)) -> 0
K2: Moeilijkheidsgraad: | M2: 3 | N2: 0.25 | O2: =SIN(RADIANS(N2/100*$V$3*360)) -> 0.07845909573
N3: 0.5 | O3: 0.156434465 | Q3: 100 | R3: aantal trillingen | T3: =ROUND(RANDBETWEEN(1,25),0) -> 13 | V3: 5
N4: 0.75 | O4: 0.2334453639 | Q4: 2
N5: 1 | O5: 0.3090169944 | Q5: 100
N6: 1.25 | O6: 0.3826834324 | Q6: 3 | R6: tijd/hokje | T6: =RANDBETWEEN(1,IF(M2=1,10,IF(M2=2,10,10))) -> 8 | V6: 3 | W6: s
N7: 1.5 | O7: 0.4539904997 | T7: =RANDBETWEEN(1,M2) -> 2 | V7: 2
N8: 1.75 | O8: 0.5224985647 | R8: Trillingsrijd | T8: =ROUND(T6*25/T3,0)/(1000^T7) -> 1.5e-05 | V8: 1.5e-05 | W8: s
N9: 2 | O9: 0.5877852523 | T9: =ROUND(T6*25/(T3),0) -> 15 | V9: 15 | W9: =IF(V7=1,"m",IF(V7=2,"μ","n")) -> μ
N10: 2.25 | O10: 0.6494480483 | R10: Frequnetie | T10: =1/((T8*25)/T3) -> 34666.66667 | V10: 13333.33333 | W10: Hz
L11: Lees E als x 10 tot de macht | N11: 2.5 | O11: 0.7071067812
L12: E-03 = x 0,001 | N12: 2.75 | O12: 0.7604059656
L13: E-02 = x 0,01 | N13: 3 | O13: 0.8090169944 | S13: =CONCATENATE("t = 25 hokjes x ",V9," ",W9,"s = ",25*V9," ",W9,"s") -> t = 25 hokjes x 15 μs = 375 μs
L14: E-01 = x 0,1 | N14: 3.25 | O14: 0.8526401644 | S14: =CONCATENATE("T = ",25*V9," ",W9,"s : ",V3," trillingen = ",ROUND(25*V9/V3,2)," ",W9,"s") -> T = 375 μs : 5 trillingen = 75 μs
L15: E+00 = x 1 | N15: 3.5 | O15: 0.8910065242 | S15: T = | T15: =V9*25/V3 -> 75 | U15: =CONCATENATE(," ",W9,"s") -> μs | V15: =CONCATENATE("=") -> = | W15: =CONCATENATE(ROUND(T15,2),"x10^",TEXT(0,V7*-3)) -> 75x10^-6 | X15: s
L16: E+01 = x 10 | N16: 3.75 | O16: 0.9238795325 | S16: f = | T16: ?
L17: E+02 = x 100 | N17: 4 | O17: 0.9510565163 | S17: f = | T17: 1 / T
L18: E+03 = x 1000 | N18: 4.25 | O18: 0.9723699204 | S18: f = | T18: =CONCATENATE("1 / ",ROUND(T15,2)," ",W9,"s") -> 1 / 75 μs
E19: =CONCATENATE("De tijd per hokje is ",V9," ",W9,"s."," Bereken de frequentie.") -> De tijd per hokje is 15 μs. Bereken de frequentie. | N19: 4.5 | O19: 0.9876883406 | S19: f = | T19: =IF(V10>999,TEXT(V10,"0,00E+00"),TEXT(V10,"0,00")) -> 1,33E+04 | U19: Hz
N20: 4.75 | O20: 0.9969173337
A21: 1) | B21: Bereken de totale tijd (t) | N21: 5 | O21: 1
A22: 2) | B22: Bereken de trillingstijd (T) | N22: 5.25 | O22: 0.9969173337
N23: 5.5 | O23: 0.9876883406
A24: 3) | B24: Bereken de fequentie (f) | N24: 5.75 | O24: 0.9723699204
N25: 6 | O25: 0.9510565163
N26: 6.25 | O26: 0.9238795325
N27: 6.5 | O27: 0.8910065242
N28: 6.75 | O28: 0.8526401644
N29: 7 | O29: 0.8090169944
N30: 7.25 | O30: 0.7604059656
N31: 7.5 | O31: 0.7071067812
B32: www.betavakken.nl | N32: 7.75 | O32: 0.6494480483
N33: 8 | O33: 0.5877852523
N34: 8.25 | O34: 0.5224985647
N35: 8.5 | O35: 0.4539904997
N36: 8.75 | O36: 0.3826834324
N37: 9 | O37: 0.3090169944
N38: 9.25 | O38: 0.2334453639
N39: 9.5 | O39: 0.156434465
N40: 9.75 | O40: 0.07845909573
N41: 10 | O41: 1.225148455e-16
N42: 10.25 | O42: -0.07845909573
N43: 10.5 | O43: -0.156434465
N44: 10.75 | O44: -0.2334453639
N45: 11 | O45: -0.3090169944
N46: 11.25 | O46: -0.3826834324
N47: 11.5 | O47: -0.4539904997
N48: 11.75 | O48: -0.5224985647
N49: 12 | O49: -0.5877852523
N50: 12.25 | O50: -0.6494480483
N51: 12.5 | O51: -0.7071067812
N52: 12.75 | O52: -0.7604059656
N53: 13 | O53: -0.8090169944
N54: 13.25 | O54: -0.8526401644
N55: 13.5 | O55: -0.8910065242
N56: 13.75 | O56: -0.9238795325
N57: 14 | O57: -0.9510565163
N58: 14.25 | O58: -0.9723699204
N59: 14.5 | O59: -0.9876883406
N60: 14.75 | O60: -0.9969173337
N61: 15 | O61: -1
N62: 15.25 | O62: -0.9969173337
N63: 15.5 | O63: -0.9876883406
N64: 15.75 | O64: -0.9723699204
N65: 16 | O65: -0.9510565163
N66: 16.25 | O66: =SIN(RADIANS(N66/100*$V$3*360)) -> -0.9238795325
N67: 16.5 | O67: -0.8910065242
N68: 16.75 | O68: -0.8526401644
N69: 17 | O69: -0.8090169944
N70: 17.25 | O70: -0.7604059656
N71: 17.5 | O71: -0.7071067812
N72: 17.75 | O72: -0.6494480483
N73: 18 | O73: -0.5877852523
N74: 18.25 | O74: -0.5224985647
N75: 18.5 | O75: -0.4539904997
N76: 18.75 | O76: -0.3826834324
N77: 19 | O77: -0.3090169944
N78: 19.25 | O78: -0.2334453639
N79: 19.5 | O79: -0.156434465
N80: 19.75 | O80: -0.07845909573
N81: 20 | O81: -2.45029691e-16
N82: 20.25 | O82: 0.07845909573
N83: 20.5 | O83: 0.156434465
N84: 20.75 | O84: 0.2334453639
N85: 21 | O85: 0.3090169944
N86: 21.25 | O86: 0.3826834324
N87: 21.5 | O87: 0.4539904997
N88: 21.75 | O88: 0.5224985647
N89: 22 | O89: 0.5877852523
N90: 22.25 | O90: 0.6494480483
N91: 22.5 | O91: 0.7071067812
N92: 22.75 | O92: 0.7604059656
N93: 23 | O93: 0.8090169944
N94: 23.25 | O94: 0.8526401644
N95: 23.5 | O95: 0.8910065242
N96: 23.75 | O96: 0.9238795325
N97: 24 | O97: 0.9510565163
N98: 24.25 | O98: 0.9723699204
N99: 24.5 | O99: 0.9876883406
N100: 24.75 | O100: 0.9969173337
N101: 25 | O101: 1
N102: 25.25 | O102: 0.9969173337
N103: 25.5 | O103: 0.9876883406
N104: 25.75 | O104: 0.9723699204
N105: 26 | O105: 0.9510565163
N106: 26.25 | O106: 0.9238795325
N107: 26.5 | O107: 0.8910065242
N108: 26.75 | O108: 0.8526401644
N109: 27 | O109: 0.8090169944
N110: 27.25 | O110: 0.7604059656
N111: 27.5 | O111: 0.7071067812
N112: 27.75 | O112: 0.6494480483
N113: 28 | O113: 0.5877852523
N114: 28.25 | O114: 0.5224985647
N115: 28.5 | O115: 0.4539904997
N116: 28.75 | O116: 0.3826834324
N117: 29 | O117: 0.3090169944
N118: 29.25 | O118: 0.2334453639
N119: 29.5 | O119: 0.156434465
N120: 29.75 | O120: 0.07845909573
N121: 30 | O121: 3.675445365e-16
N122: 30.25 | O122: -0.07845909573
N123: 30.5 | O123: -0.156434465
N124: 30.75 | O124: -0.2334453639
N125: 31 | O125: -0.3090169944
N126: 31.25 | O126: -0.3826834324
N127: 31.5 | O127: -0.4539904997
N128: 31.75 | O128: -0.5224985647
N129: 32 | O129: -0.5877852523
N130: 32.25 | O130: =SIN(RADIANS(N130/100*$V$3*360)) -> -0.6494480483
N131: 32.5 | O131: -0.7071067812
N132: 32.75 | O132: -0.7604059656
N133: 33 | O133: -0.8090169944
N134: 33.25 | O134: -0.8526401644
N135: 33.5 | O135: -0.8910065242
N136: 33.75 | O136: -0.9238795325
N137: 34 | O137: -0.9510565163
N138: 34.25 | O138: -0.9723699204
N139: 34.5 | O139: -0.9876883406
N140: 34.75 | O140: -0.9969173337
N141: 35 | O141: -1
N142: 35.25 | O142: -0.9969173337
N143: 35.5 | O143: -0.9876883406
N144: 35.75 | O144: -0.9723699204
N145: 36 | O145: -0.9510565163
N146: 36.25 | O146: -0.9238795325
N147: 36.5 | O147: -0.8910065242
N148: 36.75 | O148: -0.8526401644
N149: 37 | O149: -0.8090169944
N150: 37.25 | O150: -0.7604059656
N151: 37.5 | O151: -0.7071067812
N152: 37.75 | O152: -0.6494480483
N153: 38 | O153: -0.5877852523
N154: 38.25 | O154: -0.5224985647
N155: 38.5 | O155: -0.4539904997
N156: 38.75 | O156: -0.3826834324
N157: 39 | O157: -0.3090169944
N158: 39.25 | O158: -0.2334453639
N159: 39.5 | O159: -0.156434465
N160: 39.75 | O160: -0.07845909573
N161: 40 | O161: -4.90059382e-16
N162: 40.25 | O162: 0.07845909573
N163: 40.5 | O163: 0.156434465
N164: 40.75 | O164: 0.2334453639
N165: 41 | O165: 0.3090169944
N166: 41.25 | O166: 0.3826834324
N167: 41.5 | O167: 0.4539904997
N168: 41.75 | O168: 0.5224985647
N169: 42 | O169: 0.5877852523
N170: 42.25 | O170: 0.6494480483
N171: 42.5 | O171: 0.7071067812
N172: 42.75 | O172: 0.7604059656
N173: 43 | O173: 0.8090169944
N174: 43.25 | O174: 0.8526401644
N175: 43.5 | O175: 0.8910065242
N176: 43.75 | O176: 0.9238795325
N177: 44 | O177: 0.9510565163
N178: 44.25 | O178: 0.9723699204
N179: 44.5 | O179: 0.9876883406
N180: 44.75 | O180: 0.9969173337
N181: 45 | O181: 1
N182: 45.25 | O182: 0.9969173337
N183: 45.5 | O183: 0.9876883406
N184: 45.75 | O184: 0.9723699204
N185: 46 | O185: 0.9510565163
N186: 46.25 | O186: 0.9238795325
N187: 46.5 | O187: 0.8910065242
N188: 46.75 | O188: 0.8526401644
N189: 47 | O189: 0.8090169944
N190: 47.25 | O190: 0.7604059656
N191: 47.5 | O191: 0.7071067812
N192: 47.75 | O192: 0.6494480483
N193: 48 | O193: 0.5877852523
N194: 48.25 | O194: =SIN(RADIANS(N194/100*$V$3*360)) -> 0.5224985647
N195: 48.5 | O195: 0.4539904997
N196: 48.75 | O196: 0.3826834324
N197: 49 | O197: 0.3090169944
N198: 49.25 | O198: 0.2334453639
N199: 49.5 | O199: 0.156434465
N200: 49.75 | O200: 0.07845909573
... 201 more rows

Sheet Amplitude
A1: Oefeningen amplitude 2 HV | M1: 0 | N1: =SIN(RADIANS(M1/100*$V$3*360))*$V$3/5 -> 0
M2: 0.25 | N2: 0.6108010759
M3: 0.5 | N3: 1.192182016 | P3: 100 | Q3: aantal trillingen | T3: =ROUND(RANDBETWEEN(1,25),0) -> 1 | V3: 14
M4: 0.75 | N4: 1.71613975 | P4: 2
M5: 1 | N5: 2.15743708 | P5: 100
M6: 1.25 | N6: 2.494818268 | P6: 3 | Q6: geluidsterkte/hokje | T6: =RANDBETWEEN(1,25) -> 2 | U6: dB | V6: 10 | W6: dB
M7: 1.5 | N7: 2.712032851
M8: 1.75 | N8: 2.798618369 | Q8: amplitue in cm | T8: =$T$3/5 -> 0.2 | U8: cm | V8: 2.8 | W8: cm
M9: 2 | N9: 2.750404302
M10: 2.25 | N10: 2.569712952 | Q10: Amplitude in dB | T10: =T8*T6 -> 0.4 | U10: dB | V10: 28 | W10: dB
M11: 2.5 | N11: 2.265247584
M12: 2.75 | N12: 1.851673223
M13: 3 | N13: 1.348910287 | S13: =CONCATENATE("De amplitude = ",TEXT(0,V8)," x ",TEXT(0,V6)," dB = ",TEXT(0,V10)," dB") -> De amplitude = 2,8 x 10 dB = 28 dB
M14: 3.25 | N14: 0.7811750969
M15: 3.5 | N15: 0.1758134547
M16: 3.75 | N16: -0.4380165021
C17: =CONCATENATE("Geluidssterkte per hokje is ",TEXT(0,V6)," dB.") -> Geluidssterkte per hokje is 10 dB. | M17: 4 | N17: -1.030748748
C18: Bereken de amplitude. | M18: 4.25 | N18: -1.573833458
M19: 4.5 | N19: -2.041112157
M20: 4.75 | N20: -2.410077676
M21: 5 | N21: -2.662958246
M22: 5.25 | N22: -2.787573501
M23: 5.5 | N23: -2.777921164
M24: 5.75 | N24: -2.634466153
M25: 6 | N25: -2.364118191
M26: 6.25 | N26: -1.979898987
M27: 6.5 | N27: -1.500315026
M28: 6.75 | N28: -0.9484661767
M29: 7 | N29: -0.350933054
M30: 7.25 | N30: 0.2635032773
M31: 7.5 | N31: 0.8652475842
M32: 7.75 | N32: 1.425315964
M33: 8 | N33: 1.916731897
M34: 8.25 | N34: 2.315825608
M35: 8.5 | N35: 2.60337416
M36: 8.75 | N36: 2.765527354
M37: 9 | N37: 2.79447484
M38: 9.25 | N38: 2.68882232
M39: 9.5 | N39: 2.453658704
M40: 9.75 | N40: 2.100310995
M41: 10 | N41: 1.645798706
M42: 10.25 | N42: 1.112014094
M43: 10.5 | N43: 0.5246676808
M44: 10.75 | N44: -0.08795012542
M45: 11 | N45: -0.6963316841
M46: 11.25 | N46: -1.271173399
M47: 11.5 | N47: -1.784787171
M48: 11.75 | N48: -2.212434035
M49: 12 | N49: -2.533515747
M50: 12.25 | N50: -2.732566933
M51: 12.5 | N51: -2.8
M52: 12.75 | N52: -2.732566933
M53: 13 | N53: -2.533515747
M54: 13.25 | N54: -2.212434035
M55: 13.5 | N55: -1.784787171
M56: 13.75 | N56: -1.271173399
M57: 14 | N57: -0.6963316841
M58: 14.25 | N58: -0.08795012542
M59: 14.5 | N59: 0.5246676808
M60: 14.75 | N60: 1.112014094
M61: 15 | N61: 1.645798706
M62: 15.25 | N62: 2.100310995
M63: 15.5 | N63: 2.453658704
M64: 15.75 | N64: 2.68882232
M65: 16 | N65: =SIN(RADIANS(M65/100*$V$3*360))*$V$3/5 -> 2.79447484
M66: 16.25 | N66: 2.765527354
M67: 16.5 | N67: 2.60337416
M68: 16.75 | N68: 2.315825608
M69: 17 | N69: 1.916731897
M70: 17.25 | N70: 1.425315964
M71: 17.5 | N71: 0.8652475842
M72: 17.75 | N72: 0.2635032773
M73: 18 | N73: -0.350933054
M74: 18.25 | N74: -0.9484661767
M75: 18.5 | N75: -1.500315026
M76: 18.75 | N76: -1.979898987
M77: 19 | N77: -2.364118191
M78: 19.25 | N78: -2.634466153
M79: 19.5 | N79: -2.777921164
M80: 19.75 | N80: -2.787573501
M81: 20 | N81: -2.662958246
M82: 20.25 | N82: -2.410077676
M83: 20.5 | N83: -2.041112157
M84: 20.75 | N84: -1.573833458
M85: 21 | N85: -1.030748748
M86: 21.25 | N86: -0.4380165021
M87: 21.5 | N87: 0.1758134547
M88: 21.75 | N88: 0.7811750969
M89: 22 | N89: 1.348910287
M90: 22.25 | N90: 1.851673223
M91: 22.5 | N91: 2.265247584
M92: 22.75 | N92: 2.569712952
M93: 23 | N93: 2.750404302
M94: 23.25 | N94: 2.798618369
M95: 23.5 | N95: 2.712032851
M96: 23.75 | N96: 2.494818268
M97: 24 | N97: 2.15743708
M98: 24.25 | N98: 1.71613975
M99: 24.5 | N99: 1.192182016
M100: 24.75 | N100: 0.6108010759
M101: 25 | N101: 2.401290972e-15
M102: 25.25 | N102: -0.6108010759
M103: 25.5 | N103: -1.192182016
M104: 25.75 | N104: -1.71613975
M105: 26 | N105: -2.15743708
M106: 26.25 | N106: -2.494818268
M107: 26.5 | N107: -2.712032851
M108: 26.75 | N108: -2.798618369
M109: 27 | N109: -2.750404302
M110: 27.25 | N110: -2.569712952
M111: 27.5 | N111: -2.265247584
M112: 27.75 | N112: -1.851673223
M113: 28 | N113: -1.348910287
M114: 28.25 | N114: -0.7811750969
M115: 28.5 | N115: -0.1758134547
M116: 28.75 | N116: 0.4380165021
M117: 29 | N117: 1.030748748
M118: 29.25 | N118: 1.573833458
M119: 29.5 | N119: 2.041112157
M120: 29.75 | N120: 2.410077676
M121: 30 | N121: 2.662958246
M122: 30.25 | N122: 2.787573501
M123: 30.5 | N123: 2.777921164
M124: 30.75 | N124: 2.634466153
M125: 31 | N125: 2.364118191
M126: 31.25 | N126: 1.979898987
M127: 31.5 | N127: 1.500315026
M128: 31.75 | N128: 0.9484661767
M129: 32 | N129: =SIN(RADIANS(M129/100*$V$3*360))*$V$3/5 -> 0.350933054
M130: 32.25 | N130: -0.2635032773
M131: 32.5 | N131: -0.8652475842
M132: 32.75 | N132: -1.425315964
M133: 33 | N133: -1.916731897
M134: 33.25 | N134: -2.315825608
M135: 33.5 | N135: -2.60337416
M136: 33.75 | N136: -2.765527354
M137: 34 | N137: -2.79447484
M138: 34.25 | N138: -2.68882232
M139: 34.5 | N139: -2.453658704
M140: 34.75 | N140: -2.100310995
M141: 35 | N141: -1.645798706
M142: 35.25 | N142: -1.112014094
M143: 35.5 | N143: -0.5246676808
M144: 35.75 | N144: 0.08795012542
M145: 36 | N145: 0.6963316841
M146: 36.25 | N146: 1.271173399
M147: 36.5 | N147: 1.784787171
M148: 36.75 | N148: 2.212434035
M149: 37 | N149: 2.533515747
M150: 37.25 | N150: 2.732566933
M151: 37.5 | N151: 2.8
M152: 37.75 | N152: 2.732566933
M153: 38 | N153: 2.533515747
M154: 38.25 | N154: 2.212434035
M155: 38.5 | N155: 1.784787171
M156: 38.75 | N156: 1.271173399
M157: 39 | N157: 0.6963316841
M158: 39.25 | N158: 0.08795012542
M159: 39.5 | N159: -0.5246676808
M160: 39.75 | N160: -1.112014094
M161: 40 | N161: -1.645798706
M162: 40.25 | N162: -2.100310995
M163: 40.5 | N163: -2.453658704
M164: 40.75 | N164: -2.68882232
M165: 41 | N165: -2.79447484
M166: 41.25 | N166: -2.765527354
M167: 41.5 | N167: -2.60337416
M168: 41.75 | N168: -2.315825608
M169: 42 | N169: -1.916731897
M170: 42.25 | N170: -1.425315964
M171: 42.5 | N171: -0.8652475842
M172: 42.75 | N172: -0.2635032773
M173: 43 | N173: 0.350933054
M174: 43.25 | N174: 0.9484661767
M175: 43.5 | N175: 1.500315026
M176: 43.75 | N176: 1.979898987
M177: 44 | N177: 2.364118191
M178: 44.25 | N178: 2.634466153
M179: 44.5 | N179: 2.777921164
M180: 44.75 | N180: 2.787573501
M181: 45 | N181: 2.662958246
M182: 45.25 | N182: 2.410077676
M183: 45.5 | N183: 2.041112157
M184: 45.75 | N184: 1.573833458
M185: 46 | N185: 1.030748748
M186: 46.25 | N186: 0.4380165021
M187: 46.5 | N187: -0.1758134547
M188: 46.75 | N188: -0.7811750969
M189: 47 | N189: -1.348910287
M190: 47.25 | N190: -1.851673223
M191: 47.5 | N191: -2.265247584
M192: 47.75 | N192: -2.569712952
M193: 48 | N193: =SIN(RADIANS(M193/100*$V$3*360))*$V$3/5 -> -2.750404302
M194: 48.25 | N194: -2.798618369
M195: 48.5 | N195: -2.712032851
M196: 48.75 | N196: -2.494818268
M197: 49 | N197: -2.15743708
M198: 49.25 | N198: -1.71613975
M199: 49.5 | N199: -1.192182016
M200: 49.75 | N200: -0.6108010759
... 201 more rows

Sheet Frequentie-2
A1: Bereken de trillingstijd met gegeven frequentie
B2: Frequentie | D2: Trillingstijd
B3: =P3 -> 7.6 | C3: Hz | E3: s | F3: =IF(D3="","",IF(ROUND(D3,2)=ROUND(R3,2),"Oke","Ojee")) ->  | G3: 0.1315789474 | H3: s | I3: 131.5789474 | J3: ms | O3: =RANDBETWEEN(1,999)/10 -> 76.2 | P3: 7.6 | R3: =1/P3 -> 0.1315789474 | S3: s | T3: =R3*1000 -> 131.5789474 | U3: ms | W3: ms
B4: =P4 -> 654 | C4: Hz | E4: s | F4: =IF(D4="","",IF(ROUND(D4,2)=ROUND(R4,2),"Oke","Ojee")) ->  | G4: 0.001529051988 | H4: s | I4: 1.529051988 | J4: ms | O4: =RANDBETWEEN(1,999) -> 964 | P4: 654 | R4: =1/P4 -> 0.001529051988 | S4: s | T4: =R4*1000 -> 1.529051988 | U4: ms | W4: ms
B5: 18.8 | C5: Hz | E5: s | G5: 0.05319148936 | H5: s | I5: 53.19148936 | J5: ms | O5: =RANDBETWEEN(1,999)/20 -> 44.5 | P5: 18.8 | R5: 0.05319148936 | S5: s | T5: 53.19148936 | U5: ms | W5: ms
B6: 426 | C6: Hz | E6: s | G6: 0.00234741784 | H6: s | I6: 2.34741784 | J6: ms | O6: 81 | P6: 426 | R6: 0.00234741784 | S6: s | T6: 2.34741784 | U6: ms | W6: ms
B7: 20.4 | C7: Hz | E7: s | G7: 0.04901960784 | H7: s | I7: 49.01960784 | J7: ms | O7: =RANDBETWEEN(1,999)/30 -> 28.06666667 | P7: 20.4 | R7: 0.04901960784 | S7: s | T7: 49.01960784 | U7: ms | W7: ms
B9: 22.9 | C9: kHz | E9: s | G9: 4.366812227e-05 | H9: s | I9: 43.66812227 | J9: µs | K9: Lees E als x 10 tot de macht | O9: =RANDBETWEEN(1,999)/10 -> 67.5 | P9: 22.9 | R9: =1/P9/1000 -> 4.366812227e-05 | S9: s | T9: =R9*1000000 -> 43.66812227 | U9: µs | W9: µs
B10: 304 | C10: kHz | E10: s | G10: 3.289473684e-06 | H10: s | I10: 3.289473684 | J10: µs | K10: E-03 = x 0,001 | O10: 339 | P10: 304 | R10: =1/P10/1000 -> 3.289473684e-06 | S10: s | T10: =R10*1000000 -> 3.289473684 | U10: µs | W10: µs
B11: 39.35 | C11: kHz | E11: s | G11: 2.541296061e-05 | H11: s | I11: 25.41296061 | J11: µs | K11: E-02 = x 0,01 | O11: =RANDBETWEEN(1,999)/20 -> 0.6 | P11: 39.35 | R11: 2.541296061e-05 | S11: s | T11: 25.41296061 | U11: µs
B12: 280 | C12: kHz | E12: s | G12: 3.571428571e-06 | H12: s | I12: 3.571428571 | J12: µs | K12: E-01 = x 0,1 | O12: 288 | P12: 280 | R12: 3.571428571e-06 | S12: s | T12: 3.571428571 | U12: µs
B13: 20.06666667 | C13: kHz | E13: s | G13: 4.983388704e-05 | H13: s | I13: 49.83388704 | J13: µs | K13: E+00 = x 1 | O13: =RANDBETWEEN(1,999)/30 -> 17.96666667 | P13: 20.06666667 | R13: 4.983388704e-05 | S13: s | T13: 49.83388704 | U13: µs
K14: E+01 = x 10
B15: 57 | C15: MHz | E15: s | G15: 1.754385965e-08 | H15: s | I15: 17.54385965 | J15: ns | K15: E+02 = x 100 | O15: =RANDBETWEEN(1,999)/10 -> 63.8 | P15: 57 | R15: =1/P15/1000000 -> 1.754385965e-08 | S15: s | T15: =R15*1000000000 -> 17.54385965 | U15: ns
B16: 190 | C16: MHz | E16: s | G16: 5.263157895e-09 | H16: s | I16: 5.263157895 | J16: ns | K16: E+03 = x 1000 | O16: 921 | P16: 190 | R16: =1/P16/1000000 -> 5.263157895e-09 | S16: s | T16: =R16*1000000000 -> 5.263157895 | U16: ns
B17: 42.25 | C17: MHz | E17: s | G17: 2.366863905e-08 | H17: s | I17: 23.66863905 | J17: ns | O17: =RANDBETWEEN(1,999)/20 -> 28.4 | P17: 42.25 | R17: 2.366863905e-08 | S17: s | T17: 23.66863905 | U17: ns
B18: 413 | C18: MHz | E18: s | G18: 2.421307506e-09 | H18: s | I18: 2.421307506 | J18: ns | O18: 106 | P18: 413 | R18: 2.421307506e-09 | S18: s | T18: 2.421307506 | U18: ns
B19: 13.26666667 | C19: MHz | E19: s | G19: 7.537688442e-08 | H19: s | I19: 75.37688442 | J19: ns | O19: =RANDBETWEEN(1,999)/30 -> 10.43333333 | P19: 13.26666667 | R19: 7.537688442e-08 | S19: s | T19: 75.37688442 | U19: ns
B21: 20.3 | C21: GHz | E21: s | G21: 4.926108374e-11 | H21: s | I21: 49.26108374 | J21: ps | O21: =RANDBETWEEN(1,999)/10 -> 65.2 | P21: 20.3 | R21: =1/P21/1000000000 -> 4.926108374e-11 | S21: s | T21: =R21*1000000000000 -> 49.26108374 | U21: ps
B22: 725 | C22: GHz | E22: s | G22: 1.379310345e-12 | H22: s | I22: 1.379310345 | J22: ps | O22: 133 | P22: 725 | R22: =1/P22/1000000000 -> 1.379310345e-12 | S22: s | T22: =R22*1000000000000 -> 1.379310345 | U22: ps
B23: 3.45 | C23: GHz | E23: s | G23: 2.898550725e-10 | H23: s | I23: 289.8550725 | J23: ps | O23: =RANDBETWEEN(1,999)/20 -> 48.8 | P23: 3.45 | R23: 2.898550725e-10 | S23: s | T23: 289.8550725 | U23: ps
B24: 307 | C24: GHz | E24: s | G24: 3.25732899e-12 | H24: s | I24: 3.25732899 | J24: ps | O24: 959 | P24: 307 | R24: 3.25732899e-12 | S24: s | T24: 3.25732899 | U24: ps
B25: 17.76666667 | C25: GHz | E25: s | G25: 5.628517824e-11 | H25: s | I25: 56.28517824 | J25: ps | O25: =RANDBETWEEN(1,999)/30 -> 7.166666667 | P25: 17.76666667 | R25: 5.628517824e-11 | S25: s | T25: 56.28517824 | U25: ps

Sheet Trillingstijd
A1: Bereken de frequentie met de gegeven trillingstijd
B2: Trillingstijd | D2: Frequentie
B3: =P3 -> 40.4 | C3: s | E3: Hz | F3: =IF(D3="","",IF(ROUND(D3,2)=ROUND(R3,2),"Oke","Ojee")) ->  | G3: 0.02475247525 | H3: Hz | I3: 0.02475247525 | J3: Hz | O3: =RANDBETWEEN(1,999)/10 -> 60 | P3: 40.4 | R3: =1/P3 -> 0.02475247525 | S3: Hz | T3: =R3 -> 0.02475247525 | U3: Hz
B4: =P4 -> 43.2 | C4: s | E4: Hz | F4: =IF(D4="","",IF(ROUND(D4,2)=ROUND(R4,2),"Oke","Ojee")) ->  | G4: 0.02314814815 | H4: Hz | I4: 0.02314814815 | J4: Hz | O4: =RANDBETWEEN(1,999)/10 -> 30.5 | P4: 43.2 | R4: 0.02314814815 | S4: Hz | T4: =R4 -> 0.02314814815 | U4: Hz
B5: 24.9 | C5: s | E5: Hz | G5: 0.04016064257 | H5: Hz | I5: 0.04016064257 | J5: Hz | O5: 19.9 | P5: 24.9 | R5: 0.04016064257 | S5: Hz | T5: 0.04016064257 | U5: Hz
B6: 83.7 | C6: s | E6: Hz | G6: 0.0119474313 | H6: Hz | I6: 0.0119474313 | J6: Hz | O6: 34.1 | P6: 83.7 | R6: 0.0119474313 | S6: Hz | T6: 0.0119474313 | U6: Hz
B7: 86.4 | C7: s | E7: Hz | G7: 0.01157407407 | H7: Hz | I7: 0.01157407407 | J7: Hz | O7: 49.9 | P7: 86.4 | R7: 0.01157407407 | S7: Hz | T7: 0.01157407407 | U7: Hz
B9: 71.4 | C9: ms | E9: Hz | G9: 14.00560224 | H9: Hz | I9: 14.00560224 | J9: Hz | O9: =RANDBETWEEN(1,999)/10 -> 82.6 | P9: 71.4 | R9: =1/P9*1000 -> 14.00560224 | S9: Hz | T9: =R9 -> 14.00560224 | U9: Hz
B10: 82.4 | C10: ms | E10: Hz | G10: 12.13592233 | H10: Hz | I10: 12.13592233 | J10: Hz | O10: =RANDBETWEEN(1,999)/10 -> 35.2 | P10: 82.4 | R10: =1/P10*1000 -> 12.13592233 | S10: Hz | T10: 12.13592233 | U10: Hz
B11: 90 | C11: ms | E11: Hz | G11: 11.11111111 | H11: Hz | I11: 11.11111111 | J11: Hz | O11: 51.3 | P11: 90 | R11: 11.11111111 | S11: Hz | T11: 11.11111111 | U11: Hz
B12: 25.9 | C12: ms | E12: Hz | G12: 38.61003861 | H12: Hz | I12: 38.61003861 | J12: Hz | O12: 93.9 | P12: 25.9 | R12: 38.61003861 | S12: Hz | T12: 38.61003861 | U12: Hz
B13: 76.6 | C13: ms | E13: Hz | G13: 13.05483029 | H13: Hz | I13: 13.05483029 | J13: Hz | O13: 68 | P13: 76.6 | R13: 13.05483029 | S13: Hz | T13: 13.05483029 | U13: Hz
B15: 81.6 | C15: µs | E15: Hz | G15: 12254.90196 | H15: Hz | I15: 12.25490196 | J15: kHz | O15: =RANDBETWEEN(1,999)/10 -> 87.3 | P15: 81.6 | R15: =1/P15*1000000 -> 12254.90196 | S15: Hz | T15: =R15/1000 -> 12.25490196 | U15: kHz
B16: 94.2 | C16: µs | E16: Hz | G16: 10615.71125 | H16: Hz | I16: 10.61571125 | J16: kHz | O16: =RANDBETWEEN(1,999)/10 -> 68.5 | P16: 94.2 | R16: =1/P16*1000000 -> 10615.71125 | S16: Hz | T16: =R16/1000 -> 10.61571125 | U16: kHz
B17: 11 | C17: µs | E17: Hz | G17: 90909.09091 | H17: Hz | I17: 90.90909091 | J17: kHz | O17: 60 | P17: 11 | R17: 90909.09091 | S17: Hz | T17: 90.90909091 | U17: kHz
B18: 10.2 | C18: µs | E18: Hz | G18: 98039.21569 | H18: Hz | I18: 98.03921569 | J18: kHz | O18: 17.9 | P18: 10.2 | R18: 98039.21569 | S18: Hz | T18: 98.03921569 | U18: kHz
B19: 79.2 | C19: µs | E19: Hz | G19: 12626.26263 | H19: Hz | I19: 12.62626263 | J19: kHz | O19: 56.1 | P19: 79.2 | R19: 12626.26263 | S19: Hz | T19: 12.62626263 | U19: kHz
B21: 30.8 | C21: ns | E21: Hz | G21: 32467532.47 | H21: Hz | I21: 32.46753247 | J21: MHz | O21: =RANDBETWEEN(1,999)/10 -> 8.7 | P21: 30.8 | R21: =1/P21*1000000000 -> 32467532.47 | S21: Hz | T21: =R21/1000000 -> 32.46753247 | U21: MHz
B22: 73.3 | C22: ns | E22: Hz | G22: 13642564.8 | H22: Hz | I22: 13.6425648 | J22: MHz | O22: 28.1 | P22: 73.3 | R22: =1/P22*1000000000 -> 13642564.8 | S22: Hz | T22: =R22/1000000 -> 13.6425648 | U22: MHz
B23: 87.1 | C23: ns | E23: Hz | G23: 11481056.26 | H23: Hz | I23: 11.48105626 | J23: MHz | O23: 10.5 | P23: 87.1 | R23: 11481056.26 | S23: Hz | T23: 11.48105626 | U23: MHz
B24: 65.2 | C24: ns | E24: Hz | G24: 15337423.31 | H24: Hz | I24: 15.33742331 | J24: MHz | O24: 57.9 | P24: 65.2 | R24: 15337423.31 | S24: Hz | T24: 15.33742331 | U24: MHz
B25: 90.1 | C25: ns | E25: Hz | G25: 11098779.13 | H25: Hz | I25: 11.09877913 | J25: MHz | O25: 67.7 | P25: 90.1 | R25: 11098779.13 | S25: Hz | T25: 11.09877913 | U25: MHz
B31: www.betavakken.nl

Sheet Help
A1: Bereken de frequentie vanuit een tekening met trillinngen | G1: Berekende trillingstijd | K1: Bereken de frequentie
A3: Stap 1: | C3: Bereken de totale tijd | G3: Verzamel | I3: f = …..Hz | K3: Verzamel | M3: f = ?
C4: Aantal vakjes maal tijd per vakje | I4: T = ? | M4: T =……s
G5: Formule | K5: Formule
A6: Stap2: | C6: Bereken de tijd van één trilling (T)
G9: Invullen | K9: Invullen
A10: Stap 3: | C10: Bereken frequentie volgens groene
C11: voorbeeld. | G11: uitkomst | K11: uitkomst
